fUST/lending_fUST_20250831
["ID","MTS","AMOUNT","RATE_DAILY","PERIOD"]
[382475110,1756641055028,-1727.86,0.00018072,2]
[382475111,1756641055038,-1360.13,0.00018072,2]
[382475112,1756641055047,-480.0,0.00018072,2]
[382475113,1756641055056,-151.0,0.00018072,2]
[382475114,1756641055194,-151.0,0.00018072,2]
[382475115,1756641055205,-812.14,0.00018072,2]
[382475116,1756641055215,-293.103662,0.00018072,2]
[382475117,1756641055224,-811.53,0.00018072,2]
[382475118,1756641055233,-776.28,0.00018072,2]
[382475119,1756641055243,-480.0,0.00018072,2]
[382475120,1756641055252,-1513.89,0.00018072,2]
[382475121,1756641055261,-1653.16,0.00018072,2]
[382475122,1756641055271,-984.98,0.00018072,2]
[382475123,1756641055280,-1227.32,0.00018072,2]
[382475124,1756641055289,-1259.02,0.00018072,2]
[382475125,1756641055299,-480.0,0.00018072,2]
[382475126,1756641055308,-1758.62,0.00018072,2]
[382475127,1756641055318,-595.14,0.00018072,2]
[382475128,1756641055327,-862.15,0.00018072,2]
[382475129,1756641055336,-480.0,0.00018072,2]
[382475130,1756641055346,-480.0,0.00018072,2]
[382475131,1756641055355,-506.09,0.00018072,2]
[382475132,1756641055364,-1271.41,0.00018072,2]
[382475133,1756641055373,-480.0,0.00018072,2]
[382475134,1756641055383,-1249.46,0.00018072,2]
[382475135,1756641055391,-811.01,0.00018072,2]
[382475136,1756641055401,-1869.57,0.00018072,2]
[382475137,1756641055414,-1572.18,0.00018072,2]
[382475138,1756641055422,-557.55,0.00018072,2]
[382475139,1756641055431,-505.74755399,0.00018072,2]
[382475142,1756641057516,-480.0,0.00017523,2]
[382475143,1756641057526,-456.21474337,0.00017523,2]
[382475144,1756641057533,-480.0,0.00017523,2]
[382475145,1756641057542,-480.0,0.00017524,2]
[382475146,1756641057551,-480.0,0.00017525,2]
[382475147,1756641057560,-480.0,0.00017525,2]
[382475148,1756641057569,-480.0,0.00017525,2]
[382475149,1756641057578,-151.0,0.00017797,2]
[382475150,1756641057588,-480.0,0.00017798,2]
[382475151,1756641057597,-151.0,0.00017798,2]
[382475152,1756641057606,-223.32,0.00017799,2]
[382475153,1756641057615,-151.0,0.00017799,2]
[382475154,1756641057623,-151.0,0.00017802,2]
[382475155,1756641057632,-583.40244601,0.00018072,2]
[382475156,1756641057641,-906.27,0.00018072,2]
[382475157,1756641057650,-480.0,0.00018072,2]
[382475158,1756641057658,-1817.45,0.00018072,2]
[382475159,1756641057667,-1079.46,0.00018072,2]
[382475160,1756641057676,-2113.07,0.00018072,2]
[382475161,1756641057685,-12905.7,0.00018072,2]
[382475162,1756641057693,-480.0,0.00018072,2]
[382475163,1756641057703,-952.7,0.00018072,2]
[382475164,1756641057711,-2066.79,0.00018072,2]
[382475165,1756641057720,-355.4028545,0.00018072,2]
[382475166,1756641057729,-2705.65,0.00018072,2]
[382475167,1756641057738,-2770.45,0.00018072,2]
[382475168,1756641057747,-1519.41,0.00018072,2]
[382475169,1756641057755,-1741.72,0.00018072,2]
[382475170,1756641057764,-3702.65,0.00018072,2]
[382475171,1756641057772,-1536.27,0.00018072,2]
[382475172,1756641057781,-701.91,0.00018072,2]
[382475173,1756641057790,-737.04,0.00018072,2]
[382475174,1756641057798,-921.75,0.00018072,2]
[382475175,1756641057807,-499.02,0.00018072,2]
[382475176,1756641057817,-839.17,0.00018072,2]
[382475177,1756641057826,-1881.33,0.00018072,2]
[382475178,1756641057835,-480.0,0.00018072,2]
[382475179,1756641057845,-1262.54,0.00018072,2]
[382475180,1756641057854,-317.30995669,0.00018072,2]
[382475181,1756641060192,803.26012,0.00013699,2]
[382475182,1756641077893,5000.0,0.000175,2]
[382475183,1756641101770,3838.794317,0.000175,2]
[382475184,1756641124833,335.41431847,0.000175,2]
[382475185,1756641124858,623.84682213,0.000175,2]
[382475186,1756641133453,666.0,0.00016526,2]
[382475187,1756641148001,162.943975,0.00017376,10]
[382475188,1756641155901,4624.75516138,0.000175,2]
[382475189,1756641165175,3922.46404149,0.00016657,2]
[382475190,1756641165197,10000.01,0.00016657,2]
[382475191,1756641165220,10000.01,0.00016657,2]
[382475192,1756641165242,10000.01,0.00016657,2]
[382475193,1756641165264,2637.55739611,0.00016657,2]
[382475194,1756641179672,408.2153606,0.000175,2]
[382475195,1756641212702,1000.0,0.00017427,2]
[382475196,1756641223406,726.054986,0.00016525,2]
[382475197,1756641324409,5228.18225729,0.00016523,2]
[382475198,1756641324431,7921.63344791,0.00016523,2]
[382475199,1756641348332,158.102411,0.00016995,2]
[382475200,1756641348656,544.01444,0.00016996,2]
[382475201,1756641349006,294.5851664,0.00016997,2]
[382475208,1756641618828,1081.67453469,0.00017421,2]
[382475209,1756641618851,1351.49526535,0.00017421,2]
[382475210,1756641740450,1000.0,0.00016522,2]
[382475211,1756641850263,7648.51473465,0.00016522,2]
[382475212,1756641850286,2351.48526535,0.00016522,2]
[382475223,1756641956093,7648.52473465,0.00017,2]
[382475224,1756641956115,10000.01,0.00017,2]
[382475225,1756641956136,10000.01,0.00017,2]
[382475226,1756641956156,10000.01,0.00017,2]
[382475227,1756641956176,10000.01,0.00017,2]
[382475228,1756641956197,10000.01,0.00017,2]
[382475229,1756641956218,10000.01,0.00017,2]
[382475230,1756641956239,10000.01,0.00017,2]
[382475231,1756641956261,10000.01,0.00017,2]
[382475232,1756641956282,10000.01,0.00017,2]
[382475233,1756641956306,7850.09596503,0.00017,2]
[382475234,1756641976483,395.39894139,0.000175,2]
[382475235,1756641976937,180.2358551,8.26e-05,2]
[382475240,1756641986206,5000.0,0.000175,2]
[382475241,1756641995909,4424.37520351,0.000175,2]
[382475242,1756641995934,575.62479649,0.000175,2]
[382475246,1756642011853,5000.0,0.000175,2]
[382475248,1756642020928,4424.38520351,0.000175,2]
[382475249,1756642020953,575.61479649,0.000175,2]
[382475250,1756642038560,1168.8097909,0.00016521,2]
[382475251,1756642038811,168.0,0.00017312,2]
[382475252,1756642046098,5000.0,0.000175,2]
[382475253,1756642049069,165.0,8.5e-07,2]
[382475254,1756642050106,165.0,8.5e-07,2]
[382475255,1756642051243,165.0,8.5e-07,2]
[382475256,1756642052303,165.0,8.5e-07,2]
[382475257,1756642053454,165.0,8.5e-07,2]
[382475258,1756642055229,165.0,8.5e-07,2]
[382475259,1756642069413,2673.2002091,0.000175,2]
[382475260,1756642069436,2326.7997909,0.000175,2]
[382475261,1756642074655,2129.023575,0.00017419,2]
[382475262,1756642080128,205.61,0.00015984,2]
[382475263,1756642093674,859.32057137,0.000175,2]
[382475264,1756642125142,1291.44081896,0.0002739,120]
[382475265,1756642137477,229.1439449,0.0001652,2]
[382475266,1756642144154,940.049814,0.00013699,2]
[382475268,1756642227414,3310.06230383,0.000175,2]
[382475269,1756642227439,1689.93769617,0.000175,2]
[382475367,1756642235717,4248.74117557,0.000175,2]
[382475600,1756642240789,-233.12,0.00017511,3]
[382475602,1756642240799,-699.36,0.00017511,3]
[382475603,1756642240809,-229.67916902,0.00017511,2]
[382475606,1756642240818,-1073.0,0.00017517,2]
[382475607,1756642240828,-300.0,0.00017518,2]
[382475610,1756642240837,-1321.33,0.00017518,2]
[382475612,1756642240847,-1210.12,0.00017518,2]
[382475613,1756642240856,-480.0,0.00017519,2]
[382475615,1756642240865,-480.0,0.00017519,2]
[382475617,1756642240874,-3952.58,0.00017519,2]
[382475619,1756642240884,-594.0,0.00017519,2]
[382475621,1756642240894,-1068.43,0.00017519,2]
[382475623,1756642240903,-480.0,0.00017519,2]
[382475625,1756642240913,-480.0,0.00017519,2]
[382475627,1756642240926,-1379.24,0.00017519,2]
[382475630,1756642240935,-1724.94,0.00017519,2]
[382475632,1756642240945,-1404.15,0.00017519,2]
[382475634,1756642240954,-938.47,0.00017519,2]
[382475635,1756642240966,-615.25,0.00017519,2]
[382475637,1756642240976,-480.0,0.00017519,2]
[382475640,1756642240988,-1364.15,0.00017519,2]
[382475642,1756642240998,-5717.68,0.00017519,2]
[382475644,1756642241010,-480.0,0.00017519,2]
[382475646,1756642241020,-480.0,0.00017519,2]
[382475647,1756642241030,-1416.66,0.00017519,2]
[382475650,1756642241040,-967.18,0.00017519,2]
[382475652,1756642241050,-682.64,0.00017519,2]
[382475654,1756642241059,-4571.53,0.00017519,2]
[382475655,1756642241068,-693.14,0.00017519,2]
[382475657,1756642241077,-1234.89,0.00017519,2]
[382475659,1756642241086,-2876.07,0.00017519,2]
[382475661,1756642241096,-1226.26,0.00017519,2]
[382475664,1756642241105,-3842.72,0.00017519,2]
[382475666,1756642241115,-480.0,0.00017519,2]
[382475668,1756642241124,-3348.57,0.00017519,2]
[382475670,1756642241133,-1515.39,0.00017519,2]
[382475671,1756642241142,-545.55,0.00017519,2]
[382475673,1756642241152,-1154.1,0.00017519,2]
[382475676,1756642241162,-480.0,0.00017519,2]
[382475678,1756642241171,-1612.07,0.00017519,2]
[382475680,1756642241180,-480.0,0.00017519,2]
[382475682,1756642241190,-790.3,0.00017519,2]
[382475684,1756642241200,-480.0,0.00017519,2]
[382475686,1756642241210,-480.0,0.00017519,2]
[382475688,1756642241219,-480.0,0.0001752,2]
[382475690,1756642241228,-480.0,0.0001752,2]
[382475692,1756642241238,-1393.12,0.0001752,2]
[382475694,1756642241247,-480.0,0.0001752,2]
[382475696,1756642241256,-480.0,0.0001752,2]
[382475698,1756642241267,-480.0,0.0001752,2]
[382475700,1756642241276,-270.60387828,0.0001752,2]
[382475702,1756642241285,-646.73,0.0001752,2]
[382475704,1756642241295,-480.0,0.0001752,2]
[382475706,1756642241305,-480.0,0.0001752,2]
[382475708,1756642241314,-498.66,0.0001752,2]
[382475710,1756642241323,-504.38,0.0001752,2]
[382475712,1756642241332,-480.0,0.0001752,2]
[382475714,1756642241341,-480.95599647,0.0001752,2]
[382475716,1756642241351,-949.03,0.0001752,2]
[382475718,1756642241360,-480.0,0.0001752,2]
[382475720,1756642241370,-480.0,0.0001752,2]
[382475722,1756642241380,-660.49,0.0001752,2]
[382475724,1756642241389,-836.05,0.0001752,2]
[382475726,1756642241399,-480.0,0.0001752,2]
[382475728,1756642241408,-525.93,0.0001752,2]
[382475730,1756642241417,-760.1,0.0001752,2]
[382475732,1756642241427,-480.0,0.0001752,2]
[382475734,1756642241436,-480.0,0.0001752,2]
[382475736,1756642241446,-480.0,0.0001752,2]
[382475738,1756642241462,-480.0,0.0001752,2]
[382475741,1756642241472,-480.0,0.0001752,2]
[382475742,1756642241481,-2511.14,0.0001752,2]
[382475745,1756642241491,-1098.8,0.0001752,2]
[382475746,1756642241500,-480.0,0.0001752,2]
[382475749,1756642241509,-480.0,0.0001752,2]
[382475751,1756642241519,-388.94125252,0.0001752,2]
[382476703,1756642252462,4061.33112826,0.000175,2]
[382476706,1756642252484,938.66887174,0.000175,2]
[382477515,1756642260963,5000.0,0.000175,2]
[382478868,1756642277733,5000.0,0.000175,2]
[382479237,1756642284054,171.20339613,0.00017418,2]
[382479238,1756642284494,171.2033961,0.00017419,2]
[382479245,1756642284803,171.2033961,0.00017419,2]
[382479264,1756642285208,171.2033961,0.0001742,2]
[382479266,1756642286826,4315.19641557,0.000175,2]
[382479267,1756642286850,684.80358443,0.000175,2]
[382479269,1756642303002,363.027493,0.00016521,2]
[382479270,1756642303157,5000.0,0.000175,2]
[382479271,1756642306000,1862.89562816,0.0001742,2]
[382479273,1756642319420,-310.06,0.00017511,3]
[382479274,1756642319449,-155.03,0.00017511,3]
[382479275,1756642319477,-465.09,0.00017511,3]
[382479276,1756642319505,-480.0,0.00017518,2]
[382479277,1756642319534,-480.0,0.00017518,2]
[382479278,1756642319561,-480.0,0.00017518,2]
[382479279,1756642319589,-480.0,0.00017518,2]
[382479280,1756642319617,-300.0,0.00017518,2]
[382479281,1756642319644,-480.0,0.00017518,2]
[382479282,1756642319930,-3787.89,0.00017518,2]
[382479283,1756642319962,-480.0,0.00017518,2]
[382479284,1756642319989,-480.0,0.00017518,2]
[382479285,1756642320018,-24.22,0.00017518,2]
[382479286,1756642320596,-455.78,0.00017518,2]
[382479287,1756642320623,-500.0,0.00017518,2]
[382479288,1756642320655,-487.69,0.00017518,2]
[382479289,1756642320682,-480.0,0.00017518,2]
[382479290,1756642320711,-1023.92,0.00017518,2]
[382479291,1756642320739,-1698.71,0.00017518,2]
[382479292,1756642320836,-707.8,0.00017518,2]
[382479293,1756642320864,-1321.78,0.00017518,2]
[382479294,1756642320892,-1000.86240959,0.00017519,2]
[382479295,1756642320921,-974.08,0.00017519,2]
[382479296,1756642320951,-825.49518082,0.00017519,2]
[382479297,1756642321119,-339.96481918,0.00017519,2]
[382479298,1756642321153,-1848.94,0.00017519,2]
[382479299,1756642321182,-480.0,0.00017519,2]
[382479300,1756642321210,-511.09,0.00017519,2]
[382479301,1756642321239,-595.28633407,0.00017519,2]
[382479302,1756642321268,-480.0,0.00017519,2]
[382479303,1756642321297,-159.9476935,0.00017519,2]
[382479304,1756642321534,-1169.5423065,0.00017519,2]
[382479305,1756642321562,-480.0,0.00017519,2]
[382479306,1756642321591,-1653.07,0.00017519,2]
[382479307,1756642321620,-1174.505387,0.00017519,2]
[382479308,1756642321831,-1045.764613,0.00017519,2]
[382479309,1756642321859,-899.37,0.00017519,2]
[382479310,1756642321888,-1808.44,0.00017519,2]
[382479311,1756642321916,-721.56,0.00017519,2]
[382479312,1756642321947,-485.760774,0.00017519,2]
[382479313,1756642322323,-78.209226,0.00017519,2]
[382479314,1756642322354,-2485.08,0.00017519,2]
[382479315,1756642322385,-806.53,0.00017519,2]
[382479316,1756642323142,300.0,0.00017518,2]
[382479317,1756642323689,480.0,0.00017519,2]
[382479318,1756642323997,170.37809132,0.0002474,30]
[382479320,1756642325545,1307.31,0.00017519,2]
[382479321,1756642326539,480.0,0.00017519,2]
[382479322,1756642327221,693.051548,0.00017519,2]
[382479323,1756642327251,506.948452,0.00017519,2]
[382479324,1756642329416,5000.0,0.00017519,2]
[382479325,1756642335735,480.0,0.00017518,2]
[382479326,1756642336223,1345.65,0.00017518,2]
[382479327,1756642338164,779.54,0.00017519,2]
[382479328,1756642338608,1887.861548,0.00017519,2]
[382479329,1756642338631,3112.138452,0.00017519,2]
[382479330,1756642340285,480.0,0.00017518,2]
[382479331,1756642343866,5479.44,0.00017519,2]
[382479332,1756642344135,928.421548,0.00017519,2]
[382479333,1756642344156,176.298452,0.00017519,2]
[382479334,1756642344189,9823.701548,0.00017519,2]
[382479335,1756642344210,10000.0,0.00017519,2]
[382479336,1756642344232,10000.0,0.00017519,2]
[382479337,1756642344256,10000.0,0.00017519,2]
[382479338,1756642344279,10000.0,0.00017519,2]
[382479339,1756642344302,10000.0,0.00017519,2]
[382479340,1756642344324,5718.8918342,0.00017519,2]
[382479341,1756642347467,480.0,0.00017518,2]
[382479342,1756642352688,481.85753423,0.00017518,2]
[382479343,1756642354869,3319.25063157,0.00017519,2]
[382479344,1756642354890,1680.74936843,0.00017519,2]
[382479345,1756642355043,480.0,0.00017519,2]
[382479346,1756642356138,926.89,0.00017518,2]
[382479347,1756642356862,480.0,0.00017519,2]
[382479348,1756642357563,1357.63,0.00017519,2]
[382479349,1756642364402,5000.0,0.00017519,2]
[382479350,1756642366786,74.73063157,0.00017518,2]
[382479351,1756642366806,405.26936843,0.00017518,2]
[382479352,1756642367985,155.96891171,0.00017519,2]
[382479353,1756642370263,685.22,0.00017519,2]
[382479354,1756642371362,1227.73,0.00017518,2]
[382479355,1756642373866,5000.0,0.00017519,2]
[382479356,1756642377659,778.3,0.00017518,2]
[382479357,1756642378828,480.0,0.00017519,2]
[382479358,1756642379188,1267.51171986,0.00017519,2]
[382479359,1756642379210,571.95828014,0.00017519,2]
[382479360,1756642382972,5000.0,0.00017519,2]
[382479361,1756642383433,300.0,0.00017519,2]
[382479362,1756642389141,1239.57,0.00017518,2]
[382479363,1756642389860,1591.87,0.00017518,2]
[382479364,1756642390393,480.0,0.00017518,2]
[382479365,1756642392099,816.60171986,0.00017519,2]
[382479366,1756642392121,4183.39828014,0.00017519,2]
[382479367,1756642397699,1693.33,0.00017519,2]
[382479368,1756642399646,1655.86,0.00017518,2]
[382479369,1756642401603,288.09008906,0.00017519,2]
[382479370,1756642401632,2179.3216308,0.00017519,2]
[382479371,1756642401655,690.3783692,0.00017519,2]
[382479372,1756642402408,1450.81,0.00017519,2]
[382479373,1756642406231,2886.97,0.00017518,2]
[382479374,1756642408623,981.69,0.00017518,2]
[382479375,1756642410164,3990.1516308,0.00017519,2]
[382479376,1756642410189,1009.8483692,0.00017519,2]
[382479377,1756642412468,480.0,0.00017519,2]
[382479378,1756642418781,5000.0,0.00017519,2]
[382479379,1756642421557,504.86,0.00017518,2]
[382479380,1756642423498,3005.2916308,0.00017518,2]
[382479381,1756642423524,355.9583692,0.00017518,2]
[382479382,1756642424845,1326.33,0.00017518,2]
[382479383,1756642425126,480.0,0.00017519,2]
[382479384,1756642427072,532.41,0.00017519,2]
[382479385,1756642430028,165.0,8.5e-07,2]
[382479386,1756642430726,4805.68,0.00017518,2]
[382479387,1756642433239,1289.07,0.00017519,2]
[382479388,1756642435103,1045.5516308,0.00017519,2]
[382479389,1756642435125,3954.4483692,0.00017519,2]
[382479390,1756642439210,1959.04,0.00017519,2]
[382479391,1756642441810,571.71987851,0.00017518,2]
[382479392,1756642442581,300.0,0.00017519,2]
[382479393,1756642444459,3214.79175229,0.00017519,2]
[382479394,1756642444483,1785.20824771,0.00017519,2]
[382479395,1756642446863,2070.0,0.00017314,2]
[382479396,1756642447537,480.0,0.00017519,2]
[382479397,1756642447788,906.98,0.00017519,2]
[382479398,1756642452619,1661.89,0.00017519,2]
[382479399,1756642453470,480.0,0.00017519,2]
[382479400,1756642456354,480.0,0.00017519,2]
[382479401,1756642457253,4214.2,0.00017518,2]
[382479402,1756642461491,4825.81,0.00017519,2]
[382479403,1756642461514,174.19,0.00017519,2]
[382479404,1756642463731,1265.67,0.00017519,2]
[382479405,1756642464402,480.0,0.00017518,2]
[382479406,1756642466323,480.0,0.00017519,2]
[382479407,1756642468820,480.0,0.00017518,2]
[382479408,1756642469652,480.0,0.00017518,2]
[382479409,1756642471392,4469.70695662,0.00017519,2]
[382479410,1756642472282,1691.45,0.00017519,2]
[382479411,1756642472806,1298.31,0.00017519,2]
[382479412,1756642477212,598.29,0.00017518,2]
[382479413,1756642477279,480.0,0.00017518,2]
[382479414,1756642478389,1572.18,0.00017519,2]
[382479415,1756642479217,846.82,0.00017518,2]
[382479416,1756642480600,480.0,0.00017519,2]
[382479417,1756642480649,866.7,0.00017519,2]
[382479418,1756642481082,2153.77,0.00017519,2]
[382479419,1756642484756,3002.25,0.00017518,2]
[382479420,1756642484780,1174.61,0.00017518,2]
[382479421,1756642487881,5000.0,0.00017519,2]
[382479422,1756642489419,480.0,0.00017518,2]
[382479423,1756642489974,810.03,0.00017518,2]
[382479424,1756642493959,631.43,0.00017518,2]
[382479425,1756642495775,508.09,0.00017518,2]
[382479426,1756642496401,170.070442,0.00017519,2]
[382479427,1756642497257,1278.13,0.00017519,2]
[382479428,1756642501478,480.0,0.00017518,2]
[382479429,1756642502461,300.0,0.00017519,2]
[382479430,1756642502518,300.0,0.00017519,2]
[382479431,1756642502774,300.0,0.00017519,2]
[382479432,1756642502881,300.0,0.00017519,2]
[382479433,1756642503144,1200.0,0.00017519,2]
[382479434,1756642503755,300.0,0.00017519,2]
[382479435,1756642504200,480.0,0.00017518,2]
[382479436,1756642504776,9220.01,0.00017519,2]
[382479437,1756642504803,10000.01,0.00017519,2]
[382479438,1756642504827,10000.01,0.00017519,2]
[382479439,1756642504851,10000.01,0.00017519,2]
[382479440,1756642504874,10000.01,0.00017519,2]
[382479441,1756642504899,10000.01,0.00017519,2]
[382479442,1756642504923,10000.01,0.00017519,2]
[382479443,1756642504946,10000.01,0.00017519,2]
[382479444,1756642504970,10000.01,0.00017519,2]
[382479445,1756642504995,10000.01,0.00017519,2]
[382479446,1756642505019,3242.249558,0.00017519,2]
[382479447,1756642505044,10000.0,0.00017519,2]
[382479448,1756642505070,7969.1331362,0.00017519,2]
[382479449,1756642507510,480.0,0.00017519,2]
[382479450,1756642507581,1550.8668638,0.00017519,2]
[382479451,1756642507606,8464.4831362,0.00017519,2]
[382479452,1756642507835,480.0,0.00017518,2]
[382479453,1756642513488,5000.0,0.00017519,2]
[382479454,1756642516429,5000.01,0.00017519,2]
[382479455,1756642516453,2581.93,0.00017519,2]
[382479456,1756642517146,480.0,0.00017519,2]
[382479457,1756642519063,480.0,0.00017519,2]
[382479458,1756642519453,1061.41,0.00017518,2]
[382479459,1756642519483,560.5,0.00017519,2]
[382479460,1756642521732,480.0,0.00017519,2]
[382479461,1756642523402,1129.06,0.00017518,2]
[382479462,1756642524674,480.0,0.00017519,2]
[382479463,1756642528082,480.0,0.00017518,2]
[382479464,1756642530314,480.0,0.00017519,2]
[382479465,1756642531010,480.0,0.00017519,2]
[382479466,1756642531642,1307.11,0.0001742,2]
[382479467,1756642531666,322.92367464,0.0001742,2]
[382479468,1756642533018,991.72,0.00017518,2]
[382479469,1756642533048,480.0,0.00017519,2]
[382479470,1756642533089,500.0,0.00017518,2]
[382479471,1756642534596,1038.91,0.00017519,2]
[382479472,1756642535572,1027.81,0.00017518,2]
[382479473,1756642535714,2320.11,0.00017519,2]
[382479474,1756642536099,480.0,0.00017519,2]
[382479475,1756642536801,2039.86,0.00017518,2]
[382479476,1756642537614,798.67632536,0.00017519,2]
[382479477,1756642537645,4201.32367464,0.00017519,2]
[382479478,1756642539362,1303.78,0.00017518,2]
[382479479,1756642540131,1457.51,0.00017518,2]
[382479480,1756642541683,3037.39632536,0.00017519,2]
[382479481,1756642541706,510.97367464,0.00017519,2]
[382479482,1756642543627,480.0,0.00017519,2]
[382479483,1756642545518,651.23,0.00017518,2]
[382479484,1756642547893,709.25,0.00017519,2]
[382479485,1756642548826,480.0,0.00017519,2]
[382479486,1756642549915,706.33,0.00017519,2]
[382479487,1756642551162,1987.50849542,0.00016994,2]
[382479488,1756642551556,509.207199,0.00016996,2]
[382479489,1756642551845,1280.68,0.00017518,2]
[382479490,1756642551892,739.15064821,0.00016997,2]
[382479491,1756642552285,369.5753241,0.00016998,2]
[382479492,1756642552971,480.0,0.00017518,2]
[382479493,1756642555485,457.56722464,0.00017519,2]
[382479494,1756642558245,1483.83,0.00017518,2]
[382479495,1756642559225,480.0,0.00017519,2]
[382479496,1756642560913,480.0,0.00017519,2]
[382479497,1756642561220,5000.0,0.00017519,2]
[382479498,1756642561597,1802.94,0.00017519,2]
[382479499,1756642561745,188.5216907,0.00016569,2]
[382479500,1756642562883,107.15108466,0.00017519,2]
[382479501,1756642562910,192.84891534,0.00017519,2]
[382479502,1756642563418,480.0,0.00017519,2]
[382479503,1756642564455,2607.01,0.00017519,2]
[382479504,1756642565509,480.0,0.00017518,2]
[382479505,1756642565558,1466.77,0.00017518,2]
[382479506,1756642570235,529.22,0.00017519,2]
[382479507,1756642573666,1441.56,0.00017518,2]
[382479508,1756642580441,889.82,0.00017519,2]
[382479509,1756642582159,480.0,0.00017518,2]
[382479510,1756642585295,717.24833327,0.00017518,2]
[382479511,1756642585318,5324.87166673,0.00017518,2]
[382479512,1756642586743,4675.12833327,0.00017519,2]
[382479513,1756642590637,10000.01,0.0001742,2]
[382479514,1756642590669,10000.01,0.0001742,2]
[382479515,1756642590696,10000.01,0.0001742,2]
[382479516,1756642590720,10000.01,0.0001742,2]
[382479517,1756642590744,10000.01,0.0001742,2]
[382479518,1756642590768,10000.01,0.0001742,2]
[382479519,1756642590791,10000.01,0.0001742,2]
[382479520,1756642590813,10000.01,0.0001742,2]
[382479521,1756642590837,10000.01,0.0001742,2]
[382479522,1756642590862,7070.83296798,0.0001742,2]
[382479527,1756642618713,317.21845871,0.000175,2]
[382479528,1756642636294,242.31686445,0.00017418,2]
[382479529,1756642641282,242.31686444,0.00017422,2]
[382479530,1756642641537,2127.32484442,0.00017417,2]
[382479531,1756642641559,274.91893384,0.00017417,2]
[382479532,1756642641962,258.3788776,0.0001742,2]
[382479533,1756642682035,1793.9733605,0.00016521,2]
[382479534,1756642706612,261.0,0.00017311,2]
[382479535,1756642752904,3824.8481736,0.00016519,2]
[382479536,1756642754125,3586.89065446,0.0001742,2]
[382479537,1756642754148,10000.01,0.0001742,2]
[382479538,1756642754171,196.86123518,0.0001742,2]
[382479539,1756642766036,2095.02633214,0.00017418,2]
[382479540,1756642769959,5000.0,0.000175,2]
[382479541,1756642778415,1000.0,0.00017424,2]
[382479542,1756642793648,1708.12243268,0.000175,2]
[382479543,1756642793675,3291.87756732,0.000175,2]
[382479544,1756642819079,5000.0,0.000175,2]
[382479545,1756642839169,1000.0,0.00016519,2]
[382479546,1756642843513,708.13243268,0.000175,2]
[382479547,1756642843538,4291.86756732,0.000175,2]
[382479548,1756642868672,5000.0,0.000175,2]
[382479549,1756642892687,708.14243268,0.000175,2]
[382479550,1756642892712,4291.85756732,0.000175,2]
[382479551,1756642916268,5000.0,0.000175,2]
[382479552,1756642942178,708.15243268,0.000175,2]
[382479553,1756642942202,4291.84756732,0.000175,2]
[382479554,1756642965856,5708.16243268,0.00016518,2]